fUST/lending_fUST_20251004
["ID","MTS","AMOUNT","RATE_DAILY","PERIOD"]
[388985327,1759554660365,-1000.0,0.00023361,2]
[388985328,1759554660374,-500.0,0.00023365,3]
[388985329,1759554660383,-1080.88,0.00023365,3]
[388985330,1759554660392,-615.64,0.00023365,3]
[388985331,1759554660402,-500.0,0.00023365,3]
[388985332,1759554660412,-500.0,0.00023365,3]
[388985333,1759554660420,-500.0,0.00023366,3]
[388985334,1759554660429,-500.0,0.00023366,3]
[388985335,1759554660439,-932.0,0.00023366,3]
[388985336,1759554660447,-500.0,0.00023366,3]
[388985337,1759554660457,-656.74,0.00023366,3]
[388985338,1759554660466,-624.82522936,0.00023366,3]
[388985339,1759554660475,-1654.46,0.00023366,3]
[388985340,1759554660484,-1024.73,0.00023366,3]
[388985341,1759554660494,-1677.6,0.00023366,3]
[388985342,1759554660503,-500.0,0.00023366,3]
[388985343,1759554660514,-500.0,0.00023366,3]
[388985344,1759554660524,-7367.48,0.00023366,3]
[388985345,1759554660533,-500.0,0.00023366,3]
[388985346,1759554660542,-625.93309058,0.00023366,3]
[388985351,1759554854699,164.316241,0.00016438,2]
[388985366,1759555712775,5578.59490503,0.00025,30]
[388985387,1759555832171,-1371.88103716,0.0002061,2]
[388985388,1759555832182,-252.98018505,0.000209,2]
[388985389,1759555832191,-162.59,0.00020994,2]
[388985390,1759555832202,-300.0,0.00020994,2]
[388985391,1759555832211,-226.376032,0.00020994,2]
[388985392,1759555832220,-273.44172876,0.00021,2]
[388985393,1759555832229,-204.56450761,0.00021,2]
[388985394,1759555832239,-1122.2120426,0.00021159,2]
[388985395,1759555832248,-321.0,0.00021294,2]
[388985396,1759555832257,-344.0,0.00021594,2]
[388985397,1759555832266,-224.5,0.000217,2]
[388985398,1759555832275,-285.38032621,0.00021896,2]
[388985399,1759555832285,-1200.0,0.00021972,2]
[388985400,1759555832294,-300.0,0.00021972,2]
[388985401,1759555832304,-500.0,0.00021973,2]
[388985402,1759555832313,-500.1682224,0.00021973,2]
[388985403,1759555832323,-500.0,0.00021973,2]
[388985404,1759555832332,-500.0,0.00021973,2]
[388985405,1759555832341,-502.11107488,0.00021973,2]
[388985406,1759555832350,-500.0,0.00021973,2]
[388985407,1759555832360,-500.0,0.00021973,2]
[388985408,1759555832369,-500.0,0.00021973,2]
[388985409,1759555832378,-500.0,0.00021973,2]
[388985410,1759555832388,-500.0,0.00021973,2]
[388985411,1759555832397,-500.0,0.00021973,2]
[388985412,1759555832409,-500.0,0.00021973,2]
[388985413,1759555832419,-501.52920836,0.00021973,2]
[388985414,1759555832428,-500.0,0.00021973,2]
[388985415,1759555832439,-922.95,0.00021982,10]
[388985416,1759555832448,-769.13,0.00021982,10]
[388985417,1759555832457,-640.94,0.00021982,10]
[388985418,1759555832467,-500.0,0.00021989,3]
[388985419,1759555832479,-500.0,0.00021989,3]
[388985420,1759555832488,-424.60972208,0.00021989,3]
[388985421,1759555832497,-500.0,0.00021989,3]
[388985422,1759555832506,-2938.6,0.00021989,3]
[388985423,1759555832515,-500.0,0.00021989,3]
[388985424,1759555832525,-500.0,0.00021989,3]
[388985425,1759555832535,-500.0,0.00021989,2]
[388985426,1759555832545,-805.82,0.00021989,3]
[388985427,1759555832555,-500.0,0.00021989,3]
[388985428,1759555832564,-500.0,0.00021989,3]
[388985429,1759555832574,-459.43392575,0.0002199,3]
[388985430,1759555832583,-500.0,0.0002199,3]
[388985431,1759555832593,-682.44,0.0002199,3]
[388985432,1759555832602,-500.0,0.0002199,3]
[388985433,1759555832611,-466.89493985,0.0002199,3]
[388985434,1759555832621,-652.58,0.0002199,3]
[388985435,1759555832630,-500.0,0.0002199,3]
[388985436,1759555832640,-447.57185786,0.0002199,3]
[388985437,1759555832650,-500.0,0.0002199,3]
[388985438,1759555832661,-370.99962523,0.0002199,3]
[388985439,1759555832671,-500.0,0.0002199,3]
[388985440,1759555832681,-500.0,0.0002199,3]
[388985441,1759555832690,-500.0,0.0002199,3]
[388985442,1759555832700,-500.0,0.0002199,3]
[388985443,1759555832710,-911.33,0.0002199,3]
[388985444,1759555832719,-723.82,0.0002199,3]
[388985445,1759555832729,-1258.2,0.0002199,3]
[388985446,1759555832738,-500.0,0.00021991,3]
[388985447,1759555832748,-500.0,0.00021991,3]
[388985448,1759555832759,-739.17,0.00021991,3]
[388985449,1759555832770,-500.0,0.00021991,3]
[388985450,1759555832779,-500.0,0.00021991,3]
[388985451,1759555832788,-500.0,0.00021991,3]
[388985452,1759555832798,-217.56731518,0.00021991,2]
[388985453,1759555832808,-188.60494379,0.00021991,2]
[388985454,1759555832817,-500.0,0.00021991,3]
[388985455,1759555832827,-5525.61,0.00021991,3]
[388985456,1759555832836,-1576.87,0.00021991,3]
[388985457,1759555832847,-635.74,0.00021991,3]
[388985458,1759555832856,-500.0,0.00021991,3]
[388985459,1759555832866,-500.0,0.00021991,3]
[388985460,1759555832875,-592.72,0.00021991,3]
[388985461,1759555832885,-1862.01,0.00021991,3]
[388985462,1759555832894,-971.42,0.00021991,3]
[388985463,1759555832903,-500.0,0.00021991,3]
[388985464,1759555832912,-2374.74,0.00021991,3]
[388985465,1759555832921,-1186.58,0.00021991,3]
[388985466,1759555832931,-1482.25,0.00021991,3]
[388985467,1759555832940,-500.0,0.00021991,3]
[388985468,1759555832949,-500.0,0.00021991,3]
[388985469,1759555832958,-3447.39,0.00021991,3]
[388985470,1759555832967,-500.0,0.00021991,3]
[388985471,1759555832977,-654.22,0.00021991,3]
[388985472,1759555832987,-1044.51,0.00021991,3]
[388985473,1759555832997,-1938.01,0.00021991,3]
[388985474,1759555833006,-500.0,0.00021992,3]
[388985475,1759555833015,-482.23952354,0.00021992,3]
[388985476,1759555833024,-500.0,0.00021992,3]
[388985477,1759555833033,-500.0,0.00021992,3]
[388985478,1759555833042,-500.0,0.00021992,3]
[388985479,1759555833051,-500.0,0.00021992,3]
[388985480,1759555833061,-481.29372367,0.00021992,3]
[388985481,1759555833070,-500.0,0.00021992,3]
[388985482,1759555833079,-500.0,0.00021992,3]
[388985483,1759555833088,-500.0,0.00021992,3]
[388985484,1759555833099,-1160.36,0.00021992,3]
[388985485,1759555833109,-699.19,0.00021992,3]
[388985486,1759555833118,-1799.16,0.00021992,3]
[388985487,1759555833128,-500.0,0.00021992,3]
[388985488,1759555833137,-500.0,0.00021992,3]
[388985489,1759555833147,-500.0,0.00021992,3]
[388985490,1759555833157,-462.10859374,0.00021992,3]
[388985491,1759555833166,-807.01,0.00021992,3]
[388985492,1759555833176,-507.16,0.00021992,3]
[388985493,1759555833185,-500.0,0.00021992,3]
[388985494,1759555833195,-500.0,0.00021992,3]
[388985495,1759555833204,-500.0,0.00021992,3]
[388985496,1759555833214,-704.77,0.00021992,3]
[388985497,1759555833224,-500.0,0.00021992,3]
[388985498,1759555833233,-914.1,0.00021992,3]
[388985499,1759555833243,-1497.51,0.00021992,3]
[388985500,1759555833253,-500.0,0.00021992,3]
[388985501,1759555833265,-914.16,0.00021992,3]
[388985502,1759555833275,-500.0,0.00021992,3]
[388985503,1759555833284,-500.0,0.00021992,3]
[388985504,1759555833293,-500.0,0.00021992,3]
[388985505,1759555833305,-500.0,0.00021992,3]
[388985506,1759555833316,-696.54,0.00021992,3]
[388985507,1759555833327,-537.34,0.00021992,3]
[388985508,1759555833339,-2121.36,0.00021992,3]
[388985509,1759555833349,-789.2,0.00021992,3]
[388985510,1759555833358,-500.0,0.00021992,3]
[388985511,1759555833367,-586.82,0.00021992,3]
[388985512,1759555833377,-500.0,0.00021992,3]
[388985513,1759555833387,-500.0,0.00021992,3]
[388985514,1759555833399,-577.76,0.00021992,3]
[388985515,1759555833411,-500.0,0.00021992,3]
[388985516,1759555833421,-500.0,0.00021992,3]
[388985517,1759555833430,-500.0,0.00021992,3]
[388985518,1759555833442,-1169.7,0.00021992,3]
[388985519,1759555833451,-954.32,0.00021992,3]
[388985520,1759555833460,-836.65,0.00021992,3]
[388985521,1759555833470,-500.0,0.00021992,3]
[388985522,1759555833481,-500.0,0.00021992,3]
[388985523,1759555833490,-500.0,0.00021992,3]
[388985524,1759555833500,-500.0,0.00021992,3]
[388985525,1759555833509,-500.0,0.00021992,3]
[388985526,1759555833518,-500.0,0.00021992,3]
[388985527,1759555833527,-500.0,0.00021992,3]
[388985528,1759555833536,-500.0,0.00021992,3]
[388985529,1759555833546,-1449.34,0.00021992,3]
[388985530,1759555833557,-484.02391211,0.00021992,3]
[388985531,1759555833567,-1761.5,0.00021992,3]
[388985532,1759555833576,-500.0,0.00021992,3]
[388985533,1759555833585,-3137.49,0.00021992,3]
[388985534,1759555833595,-500.0,0.00021992,3]
[388985535,1759555833604,-500.0,0.00021992,3]
[388985536,1759555833613,-500.0,0.00021992,3]
[388985537,1759555833623,-644.31,0.00021992,3]
[388985538,1759555833632,-500.0,0.00021992,3]
[388985539,1759555833642,-443.05911259,0.00021992,3]
[388985540,1759555833651,-1223.96,0.00021992,3]
[388985541,1759555833660,-500.0,0.00021992,3]
[388985542,1759555833670,-500.0,0.00021992,3]
[388985543,1759555833679,-500.0,0.00021992,3]
[388985544,1759555833688,-500.0,0.00021992,3]
[388985545,1759555833699,-627.81,0.00021992,3]
[388985546,1759555833708,-850.31,0.00021992,3]
[388985547,1759555833717,-500.0,0.00021992,3]
[388985548,1759555833726,-500.0,0.00021992,3]
[388985549,1759555833735,-500.0,0.00021992,3]
[388985550,1759555833745,-1128.99,0.00021992,3]
[388985551,1759555833754,-500.0,0.00021992,3]
[388985552,1759555833764,-423.12770602,0.00021992,3]
[388985553,1759555833773,-1041.68,0.00021992,3]
[388985554,1759555833783,-500.0,0.00021992,3]
[388985555,1759555833793,-151.02716197,0.00021992,3]
[388985556,1759555833802,-468.0,0.00021992,3]
[388985557,1759555833811,-500.0,0.00021992,3]
[388985558,1759555833820,-1525.49,0.00021992,3]
[388985559,1759555833830,-151.19396176,0.00021992,3]
[388985560,1759555833850,-500.0,0.00021992,3]
[388985561,1759555833860,-151.0,0.00021992,3]
[388985562,1759555833870,-151.23000207,0.00021992,3]
[388985563,1759555833880,-52.74547931,0.00021992,3]
[388985804,1759555840153,-591.73936513,0.00021989,2]
[388985806,1759555840163,-500.0,0.00021989,2]
[388985808,1759555840172,-500.0,0.00021989,2]
[388985810,1759555840182,-500.0,0.00021989,2]
[388985812,1759555840191,-500.0,0.00021989,2]
[388985814,1759555840201,-500.0,0.00021989,2]
[388985816,1759555840211,-500.0,0.00021989,2]
[388985818,1759555840221,-387.0018564,0.00021989,2]
[388985820,1759555840230,-500.0,0.00021989,2]
[388985822,1759555840240,-500.0,0.00021989,2]
[388985824,1759555840249,-500.0,0.00021989,2]
[388985826,1759555840258,-164.67637258,0.00021989,2]
[388985828,1759555840267,-500.0,0.00021989,2]
[388985830,1759555840276,-500.0,0.00021989,2]
[388985832,1759555840285,-500.0,0.00021989,2]
[388985834,1759555840294,-500.0,0.00021989,2]
[388985836,1759555840304,-272.08497581,0.00021989,2]
[388985838,1759555840313,-500.0,0.00021989,2]
[388985840,1759555840321,-500.0,0.00021989,2]
[388985842,1759555840330,-500.0,0.00021989,2]
[388985844,1759555840340,-500.0,0.00021989,2]
[388985846,1759555840348,-500.0,0.00021989,2]
[388985848,1759555840358,-536.09113166,0.00021989,2]
[388985850,1759555840366,-500.0,0.00021989,2]
[388985852,1759555840375,-267.0448453,0.00021989,2]
[388985855,1759555840385,-500.0,0.00021989,3]
[388985856,1759555840397,-500.0,0.00021989,3]
[388985858,1759555840408,-500.0,0.00021989,3]
[388985860,1759555840418,-500.0,0.00021989,3]
[388985863,1759555840427,-500.0,0.00021989,3]
[388985865,1759555840437,-98.25452069,0.00021992,3]
[388985867,1759555840448,-622.7,0.00021992,3]
[388985869,1759555840459,-151.0,0.00021992,2]
[388985871,1759555840469,-151.0,0.00021992,3]
[388985873,1759555840482,-2053.6,0.00021992,3]
[388985875,1759555840492,-151.0,0.00021992,3]
[388985877,1759555840503,-500.0,0.00021992,3]
[388985879,1759555840513,-945.63,0.00021992,3]
[388985881,1759555840523,-1251.73,0.00021992,3]
[388985882,1759555840533,-500.0,0.00021992,3]
[388985885,1759555840543,-500.0,0.00021992,3]
[388985887,1759555840552,-500.0,0.00021992,2]
[388985889,1759555840563,-500.0,0.00021992,3]
[388985891,1759555840572,-1359.97,0.00021992,3]
[388985893,1759555840582,-1080.52,0.00021992,3]
[388985895,1759555840592,-269.83829118,0.00021992,3]
[388985897,1759555840600,-500.0,0.00021992,3]
[388985899,1759555840609,-1198.6,0.00021992,3]
[388985901,1759555840618,-500.0,0.00021992,3]
[388985903,1759555840627,-500.0,0.00021992,3]
[388985905,1759555840636,-358.55159582,0.00021992,3]
[388985907,1759555840645,-3.7231408,0.00021992,3]
[388985919,1759555840895,-1092.0268592,0.00021992,3]
[388985920,1759555840904,-500.0,0.00021992,3]
[388985921,1759555840913,-7448.09,0.00021992,3]
[388985922,1759555840922,-500.0,0.00021992,3]
[388985923,1759555840931,-288.88192159,0.00021992,3]
[388985924,1759555840940,-500.0,0.00021992,3]
[388985925,1759555840949,-500.0,0.00021992,3]
[388985926,1759555840959,-1471.00121921,0.00021992,3]
[388990650,1759556223485,151.0,0.00028767,120]
[388990652,1759556288004,1641.42,0.00028767,120]
[388990704,1759557032511,-420.81160766,0.00020775,2]
[388990705,1759557032521,-176.8359416,0.00020985,2]
[388990706,1759557032530,-292.37516938,0.00020999,2]
[388991152,1759557687839,165.33054,0.00016438,2]
[388991250,1759558238514,-5996.31577529,0.0002022,2]
[388991251,1759558238524,-700.1563476,0.00020336,2]
[388991252,1759558238534,-1192.3770454,0.00020477,2]
[388991253,1759558238543,-226.3760339,0.00020578,2]
[388991254,1759558238552,-652.42768743,0.00020713,2]
[388991551,1759558895234,179.80844788,0.00017891,2]
[388991552,1759558896738,718.51455773,0.00017891,2]
[388991553,1759559025401,654.18854219,0.00017891,2]
[388991554,1759559027286,2614.13741461,0.00017891,2]
[388991557,1759559164709,199.71722334,0.00017547,2]
[388991656,1759559438698,-1200.0,0.00019207,2]
[388991658,1759559438708,-300.0,0.00019207,2]
[388991660,1759559438719,-300.0,0.00019207,2]
[388991662,1759559438728,-300.0,0.00019207,2]
[388991664,1759559438738,-1200.0,0.00019207,2]
[388991666,1759559438747,-6884.81778323,0.00019208,2]
[388991668,1759559438757,-300.0,0.00019208,2]
[388991670,1759559438766,-300.0,0.00019208,2]
[388991672,1759559438776,-300.0,0.00019208,2]
[388991674,1759559438786,-300.0,0.00019208,2]
[388991676,1759559438795,-111.26885124,0.00019208,2]
[388991678,1759559438807,-188.73114876,0.00019208,2]
[388991680,1759559438817,-300.0,0.00019208,2]
[388991682,1759559438826,-300.0,0.00019208,2]
[388991684,1759559438836,-300.0,0.00019208,2]
[388991686,1759559438845,-300.0,0.00019208,2]
[388991688,1759559438855,-300.0,0.00019208,2]
[388991690,1759559438863,-300.0,0.00019208,2]
[388991692,1759559438872,-300.0,0.00019208,2]
[388991694,1759559438882,-300.0,0.00019208,2]
[388991696,1759559438891,-300.0,0.00019208,2]
[388991698,1759559438901,-300.0,0.00019208,2]
[388991700,1759559438911,-539.94935797,0.0002049,2]
[388991702,1759559438920,-600.0,0.00020622,2]
[388991704,1759559438930,-250.0,0.00020677,2]
[388991706,1759559438940,-361.24,0.00020894,2]
[388991708,1759559438949,-3220.97567319,0.000209,2]
[388991710,1759559438958,-578.61765311,0.000209,2]
[388991712,1759559438969,-92613.50999449,0.000209,2]
[388991714,1759559438978,-420.0,0.00020931,2]
[388991716,1759559438988,-534.12,0.0002099,10]
[388991718,1759559438998,-251.8938717,0.00020999,2]
[388991720,1759559439007,-337.34345907,0.00020999,2]
[388991722,1759559439017,-474.67610842,0.00020999,2]
[388991724,1759559439027,-152.29712063,0.00020999,2]
[388991726,1759559439036,-11001.87840584,0.00021,3]
[388991728,1759559439045,-160.0,0.00021,3]
[388991730,1759559439057,-293.52280873,0.00021,3]
[388991732,1759559439067,-269.60928861,0.00021,2]
[388991734,1759559439076,-151.0,0.00021,2]
[388991736,1759559439086,-151.0,0.00021,2]
[388991738,1759559439097,-151.0,0.00021,2]
[388991740,1759559439107,-151.0,0.00021,2]
[388991742,1759559439116,-151.0,0.00021,2]
[388991744,1759559439125,-234.93407,0.00021,2]
[388991746,1759559439135,-151.0,0.00021,2]
[388991748,1759559439144,-500.0,0.00021,3]
[388991750,1759559439153,-151.0,0.00021,2]
[388991752,1759559439162,-151.0,0.00021,2]
[388991754,1759559439171,-151.0,0.00021,2]
[388991756,1759559439180,-174.938912,0.00021,2]
[388991758,1759559439190,-151.0,0.00021,2]
[388991760,1759559439200,-151.0,0.00021,2]
[388991762,1759559439210,-151.0,0.00021,2]
[388991764,1759559439219,-151.0,0.00021,2]
[388991766,1759559439228,-151.0,0.00021,2]
[388991768,1759559439237,-151.0,0.00021,2]
[388991770,1759559439246,-151.0,0.00021,2]
[388991772,1759559439255,-151.0,0.00021,2]
[388991774,1759559439264,-254.294786,0.00021,2]
[388991776,1759559439273,-151.0,0.00021,2]
[388991778,1759559439281,-151.0,0.00021,2]
[388991780,1759559439290,-151.0,0.00021,2]
[388991781,1759559439299,-151.0,0.00021,2]
[388991783,1759559439309,-151.0,0.00021,2]
[388991785,1759559439318,-151.0,0.00021,2]
[388991787,1759559439327,-166.435157,0.00021,2]
[388991789,1759559439336,-151.0,0.00021,2]
[388991791,1759559439346,-151.0,0.00021,2]
[388991793,1759559439355,-151.0,0.00021,2]
[388991795,1759559439363,-151.0,0.00021,2]
[388991797,1759559439373,-151.0,0.00021,2]
[388991799,1759559439382,-151.0,0.00021,2]
[388991801,1759559439391,-151.0,0.00021,2]
[388991803,1759559439401,-151.0,0.00021,2]
[388991805,1759559439411,-151.0,0.00021,2]
[388991807,1759559439421,-151.0,0.00021,2]
[388991809,1759559439430,-151.0,0.00021,2]
[388991811,1759559439440,-152.813654,0.00021,2]
[388991814,1759559439449,-152.12701,0.00021,2]
[388991816,1759559439459,-151.0,0.00021,2]
[388991818,1759559439468,-151.0,0.00021,2]
[388991820,1759559439479,-155.045436,0.00021,2]
[388991821,1759559439488,-151.0,0.00021,2]
[388991823,1759559439497,-151.0,0.00021,2]
[388991825,1759559439507,-151.0,0.00021,2]
[388991827,1759559439516,-151.0,0.00021,2]
[388991829,1759559439525,-151.0,0.00021,2]
[388991831,1759559439534,-151.0,0.00021,2]
[388991833,1759559439544,-154.851904,0.00021,2]
[388991835,1759559439553,-1045.95,0.00021,2]
[388991838,1759559439563,-1045.95,0.00021,2]
[388991839,1759559439572,-1045.95,0.00021,2]
[388991842,1759559439582,-1045.95,0.00021,2]
[388991843,1759559439591,-1045.95,0.00021,2]
[388991846,1759559439600,-1045.95,0.00021,2]
[388991847,1759559439610,-1045.95,0.00021,2]
[388991850,1759559439619,-1045.95,0.00021,2]
[388991851,1759559439629,-1045.95,0.00021,2]
[388991853,1759559439638,-1045.95,0.00021,2]
[388991855,1759559439647,-1045.95,0.00021,2]
[388991857,1759559439656,-1045.95,0.00021,2]
[388991859,1759559439665,-151.0,0.00021,2]
[388991861,1759559439674,-151.0,0.00021,2]
[388991863,1759559439683,-151.0,0.00021,2]
[388991865,1759559439692,-151.0,0.00021,2]
[388991867,1759559439702,-151.0,0.00021,2]
[388991870,1759559439711,-237.360647,0.00021,2]
[388991871,1759559439720,-151.0,0.00021,2]
[388991874,1759559439730,-151.0,0.00021,2]
[388991875,1759559439739,-151.0,0.00021,2]
[388991878,1759559439749,-151.0,0.00021,2]
[388991880,1759559439759,-151.0,0.00021,2]
[388991882,1759559439768,-151.0,0.00021,2]
[388991883,1759559439776,-151.0,0.00021,2]
[388991884,1759559439785,-151.0,0.00021,2]
[388991885,1759559439794,-151.0,0.00021,2]
[388991886,1759559439803,-151.0,0.00021,2]
[388991887,1759559439811,-202.761842,0.00021,2]
[388991888,1759559439820,-153.375003,0.00021,2]
[388991889,1759559439829,-151.0,0.00021,2]
[388991890,1759559439838,-151.0,0.00021,2]
[388991891,1759559439847,-151.0,0.00021,2]
[388991892,1759559439856,-151.0,0.00021,2]
[388991893,1759559439865,-151.0,0.00021,2]
[388991894,1759559439874,-151.0,0.00021,2]
[388991895,1759559439883,-151.0,0.00021,2]
[388991896,1759559439891,-151.0,0.00021,2]
[388991897,1759559439900,-151.0,0.00021,2]
[388991898,1759559439909,-151.0,0.00021,2]
[388991899,1759559439918,-151.0,0.00021,2]
[388991900,1759559439927,-151.0,0.00021,2]
[388991901,1759559439936,-151.0,0.00021,2]
[388991902,1759559439944,-151.0,0.00021,2]
[388991903,1759559439953,-291.597328,0.00021,2]
[388991904,1759559439962,-151.0,0.00021,2]
[388991905,1759559439971,-151.0,0.00021,2]
[388991906,1759559439981,-180.099124,0.00021,2]
[388991907,1759559439989,-151.0,0.00021,2]
[388991908,1759559439999,-151.0,0.00021,2]
[388991909,1759559440008,-151.0,0.00021,2]
[388991910,1759559440017,-160.140261,0.00021,2]
[388991911,1759559440026,-151.0,0.00021,2]
[388991912,1759559440035,-151.0,0.00021,2]
[388991913,1759559440044,-151.0,0.00021,2]
[388991914,1759559440053,-151.0,0.00021,2]
[388991915,1759559440062,-151.0,0.00021,2]
[388991916,1759559440071,-151.0,0.00021,2]
[388991917,1759559440081,-151.0,0.00021,2]
[388991918,1759559440090,-151.0,0.00021,2]
[388991919,1759559440099,-151.0,0.00021,2]
[388991920,1759559440107,-151.0,0.00021,2]
[388991921,1759559440116,-151.0,0.00021,2]
[388991922,1759559440126,-151.0,0.00021,2]
[388991923,1759559440134,-151.0,0.00021,2]
[388991924,1759559440143,-151.0,0.00021,2]
[388991925,1759559440152,-184.716019,0.00021,2]
[388991926,1759559440161,-151.0,0.00021,2]
[388991927,1759559440170,-151.0,0.00021,2]
[388991929,1759559440181,-165.175943,0.00021,2]
[388991931,1759559440191,-151.0,0.00021,2]
[388991933,1759559440201,-151.0,0.00021,2]
[388991935,1759559440210,-151.0,0.00021,2]
[388991937,1759559440219,-151.0,0.00021,2]
[388991939,1759559440228,-151.504711,0.00021,2]
[388991941,1759559440237,-151.0,0.00021,2]
[388991943,1759559440246,-151.0,0.00021,2]
[388991945,1759559440256,-151.0,0.00021,2]
[388991947,1759559440266,-151.0,0.00021,2]
[388991949,1759559440275,-151.0,0.00021,2]
[388991951,1759559440285,-151.0,0.00021,2]
[388991953,1759559440294,-151.0,0.00021,2]
[388991955,1759559440304,-151.0,0.00021,2]
[388991957,1759559440314,-151.0,0.00021,2]
[388991959,1759559440323,-151.0,0.00021,2]
[388991989,1759559440613,-151.0,0.00021,2]
[388991991,1759559440624,-206.308944,0.00021,2]
[388991993,1759559440634,-168.553238,0.00021,2]
[388991995,1759559440643,-168.553238,0.00021,2]
[388991997,1759559440653,-168.553238,0.00021,2]
[388991999,1759559440662,-168.553238,0.00021,2]
[388992000,1759559440671,-168.553238,0.00021,2]
[388992002,1759559440680,-168.553238,0.00021,2]
[388992004,1759559440688,-168.553238,0.00021,2]
[388992006,1759559440697,-168.553238,0.00021,2]
[388992008,1759559440706,-168.553238,0.00021,2]
[388992010,1759559440715,-151.0,0.00021,2]
[388992012,1759559440725,-168.553238,0.00021,2]
[388992014,1759559440734,-151.0,0.00021,2]
[388992016,1759559440743,-168.553238,0.00021,2]
[388992018,1759559440751,-151.0,0.00021,2]
[388992020,1759559440760,-151.0,0.00021,2]
[388992022,1759559440769,-168.553238,0.00021,2]
[388992024,1759559440779,-151.0,0.00021,2]
[388992025,1759559440787,-151.0,0.00021,2]
[388992027,1759559440796,-168.553238,0.00021,2]
[388992029,1759559440805,-151.0,0.00021,2]
[388992031,1759559440815,-151.0,0.00021,2]
[388992033,1759559440824,-168.553238,0.00021,2]
[388992035,1759559440832,-151.0,0.00021,2]
[388992037,1759559440842,-151.0,0.00021,2]
[388992038,1759559440851,-168.553238,0.00021,2]
[388992040,1759559440860,-151.0,0.00021,2]
[388992042,1759559440869,-151.0,0.00021,2]
[388992044,1759559440879,-151.0,0.00021,2]
[388992046,1759559440888,-151.0,0.00021,2]
[388992048,1759559440897,-168.553238,0.00021,2]
[388992050,1759559440906,-151.0,0.00021,2]
[388992052,1759559440916,-151.0,0.00021,2]
[388992054,1759559440926,-168.553238,0.00021,2]
[388992056,1759559440937,-151.0,0.00021,2]
[388992058,1759559440946,-151.0,0.00021,2]
[388992059,1759559440955,-168.553238,0.00021,2]
[388992061,1759559440964,-244.882701,0.00021,2]
[388992063,1759559440973,-298.617692,0.00021,2]
[388992065,1759559440982,-168.553238,0.00021,2]
[388992067,1759559440991,-168.55323,0.00021,2]
[388992069,1759559441000,-170.708088,0.00021,2]
[388992071,1759559441009,-151.0,0.00021,2]
[388992073,1759559441019,-151.0,0.00021,2]
[388992075,1759559441028,-151.0,0.00021,2]
[388992077,1759559441036,-151.0,0.00021,2]
[388992079,1759559441045,-151.0,0.00021,2]
[388992081,1759559441055,-151.0,0.00021,2]
[388992083,1759559441063,-152.56144,0.00021,2]